bitfinex/quotes_BTCUSD_20220304
["timestamp","ask_amount","ask_price","bid_price","bid_amount"]
[1646411351521,0.67440625,40672.0,40656.0,0.4583]
[1646411351522,0.061535,40663.0,40656.0,0.4583]
[1646411351724,0.0492,40662.0,40658.0,0.369321]
[1646411351920,0.0492,40662.0,40658.0,0.123062]
[1646411352122,0.0992,40662.0,40658.0,0.123062]
[1646411352324,0.0492,40662.0,40658.0,0.123062]
[1646411353122,0.110737,40662.0,40658.0,0.123062]
[1646411353524,0.06153735,40661.0,40658.0,0.123062]
[1646411353724,0.0492,40660.0,40658.0,0.123062]
[1646411354569,0.0492,40660.0,40659.0,0.369321]
[1646411354772,0.002,40664.0,40661.0,0.02454]
[1646411355167,0.002,40664.0,40661.0,0.12454]
[1646411355368,0.0492,40666.0,40662.0,0.369321]
[1646411355772,0.0502,40666.0,40662.0,0.369321]
[1646411355969,0.0502,40666.0,40662.0,0.4269997]
[1646411356972,0.001,40666.0,40663.0,0.12454]
[1646411357174,0.001,40666.0,40665.0,0.02454]
[1646411357371,0.06150722,40673.0,40666.0,0.184518]
[1646411357626,0.06150722,40673.0,40667.0,0.369321]
[1646411357823,0.001,40672.0,40667.0,0.369321]
[1646411358222,0.06150176,40675.0,40670.0,1.4]
[1646411358422,0.01145856,40688.0,40671.0,0.393861]
[1646411358619,0.12299352,40682.0,40671.0,0.79023276]
[1646411358818,0.12299352,40682.0,40671.0,0.493861]
[1646411359019,0.12299352,40682.0,40673.0,0.02454]
[1646411359222,0.12299352,40682.0,40674.0,0.369321]
[1646411359821,0.06149386,40680.0,40674.0,0.369321]
[1646411360126,0.06149386,40680.0,40677.0,0.15]
[1646411360322,0.001,40686.0,40684.0,0.06392586]
[1646411360520,0.001,40686.0,40685.0,0.369321]
[1646411360721,0.001,40686.0,40685.0,0.469321]
[1646411361120,0.41571642,40687.0,40685.0,0.469321]
[1646411361375,0.12294978,40694.0,40686.0,0.493861]
[1646411361571,0.12294978,40694.0,40687.0,0.369321]
[1646411362366,0.28290824,40689.0,40688.0,0.061473]
[1646411362567,0.28290824,40689.0,40688.0,0.430794]
[1646411362968,0.06147365,40690.0,40688.0,0.430794]
[1646411367425,0.06147365,40690.0,40689.0,0.669321]
[1646411367626,0.06146859,40695.0,40690.0,0.56850507]
[1646411367826,0.12293718,40699.0,40691.0,0.235205]
[1646411368028,0.12293718,40699.0,40693.0,0.184402]
[1646411368324,0.12293718,40699.0,40694.0,0.369321]
[1646411368524,0.12293718,40699.0,40696.0,0.369321]
[1646411368728,0.0614661,40698.0,40696.0,0.369321]
[1646411369374,0.1114661,40698.0,40696.0,0.369321]
[1646411370969,0.1114661,40698.0,40696.0,0.669321]
[1646411371171,0.1114661,40698.0,40696.0,0.369321]
[1646411371371,0.1114661,40698.0,40695.0,0.061467]
[1646411371372,0.3,40697.0,40695.0,0.061467]
[1646411371573,0.013222,40696.0,40695.0,0.061467]
[1646411371770,0.3,40697.0,40695.0,0.061467]
[1646411371971,0.1614661,40698.0,40695.0,0.061467]
[1646411372170,0.21356082,40696.0,40695.0,0.061467]
[1646411372370,0.05,40697.0,40695.0,0.061467]
[1646411372826,0.1614661,40698.0,40695.0,0.061467]
[1646411374128,0.1114661,40698.0,40695.0,0.061467]
[1646411374332,0.1114661,40698.0,40696.0,0.369321]
[1646411374528,0.1070661,40698.0,40696.0,0.369321]
[1646411374728,0.12292417,40703.0,40697.0,0.819321]
[1646411375032,0.05,40711.0,40700.0,0.393861]
[1646411375230,0.05,40711.0,40703.0,0.393861]
[1646411375231,0.0614442,40711.0,40703.0,0.393861]
[1646411375428,0.0614442,40711.0,40705.0,0.369321]
[1646411375831,0.0614442,40711.0,40707.0,0.369321]
[1646411376127,0.0614442,40711.0,40706.0,0.369321]
[1646411376779,0.3911099,40711.0,40706.0,0.369321]
[1646411376980,0.28534556,40708.0,40706.0,0.369321]
[1646411377182,0.4082616,40708.0,40706.0,0.369321]
[1646411377381,0.4582616,40708.0,40705.0,0.061445]
[1646411377583,0.5082616,40708.0,40703.0,0.122889]
[1646411377786,0.27184671,40701.0,40698.0,0.122941]
[1646411377984,0.32184671,40701.0,40698.0,0.122941]
[1646411378184,0.16147343,40701.0,40698.0,0.122941]
[1646411378988,0.16147343,40701.0,40698.0,0.12283406]
[1646411379288,0.43628549,40700.0,40698.0,0.12283406]
[1646411379487,0.43628549,40700.0,40698.0,0.11086764]
[1646411379689,0.48628549,40700.0,40698.0,0.11086764]
[1646411380319,0.48628549,40700.0,40695.0,0.12295]
[1646411380717,0.074702,40699.0,40695.0,0.12295]
[1646411380921,0.013222,40697.0,40691.0,0.122959]
[1646411381116,0.19768365,40697.0,40691.0,0.122959]
[1646411381316,0.18446165,40697.0,40691.0,0.122959]
[1646411381517,0.05,40696.0,40691.0,0.122959]
[1646411381718,0.05,40696.0,40691.0,0.422959]
[1646411381917,0.05,40696.0,40691.0,0.122959]
[1646411382517,0.013222,40695.0,40691.0,0.122959]
[1646411382817,0.37608367,40696.0,40690.0,0.001]
[1646411382818,0.26696898,40693.0,40690.0,0.001]
[1646411383216,0.26696898,40693.0,40686.0,0.122978]
[1646411383217,0.36696898,40693.0,40686.0,0.122978]
[1646411383416,0.27283075,40688.0,40686.0,0.122978]
[1646411383620,0.013222,40687.0,40686.0,0.122978]
[1646411384173,0.11149602,40688.0,40686.0,0.122978]
[1646411384971,0.11149602,40688.0,40687.0,0.369321]
[1646411385269,0.05,40688.0,40687.0,0.669321]
[1646411385469,0.12296326,40692.0,40686.0,0.122978]
[1646411386071,0.05,40691.0,40686.0,0.122978]
[1646411386375,0.33187567,40691.0,40686.0,0.122978]
[1646411386771,0.05,40691.0,40686.0,0.122978]
[1646411386972,0.06147912,40690.0,40686.0,0.122978]
[1646411387173,0.06147912,40690.0,40686.0,0.422978]
[1646411387822,0.05,40695.0,40688.0,0.369321]
[1646411388023,0.30669544,40696.0,40689.0,0.061478]
[1646411388223,0.40669544,40696.0,40689.0,0.061478]
[1646411388622,0.0614764,40694.0,40689.0,0.061478]
[1646411389026,0.1114764,40694.0,40690.0,0.369321]
[1646411389227,0.1114764,40694.0,40692.0,0.369321]
[1646411389522,0.1114764,40694.0,40690.0,0.430797]
[1646411390323,0.1114764,40694.0,40692.0,0.369321]
[1646411390522,0.1114764,40694.0,40693.0,0.669321]
[1646411390724,0.05,40694.0,40693.0,0.669321]
[1646411391123,0.16146722,40698.0,40694.0,0.369321]
[1646411391373,0.16146722,40698.0,40694.0,0.430787]
[1646411392173,0.11146722,40698.0,40694.0,0.430787]
[1646411392373,0.05,40703.0,40694.0,0.430787]
[1646411392374,0.06146138,40702.0,40694.0,0.430787]
[1646411392578,0.12291683,40708.0,40696.0,0.369321]
[1646411392773,0.12291683,40708.0,40698.0,0.369321]
[1646411392976,0.32338368,40710.0,40701.0,0.369321]
[1646411393173,0.32338368,40710.0,40703.0,0.369321]
[1646411393673,0.32338368,40710.0,40702.0,0.4]
[1646411393674,0.2897816,40707.0,40705.0,0.43078]
[1646411393875,0.2897816,40707.0,40705.0,0.061459]
[1646411394080,0.2897816,40707.0,40701.0,0.122902]
[1646411394276,0.3897816,40707.0,40701.0,0.122902]
[1646411394877,0.31429912,40703.0,40702.0,0.369321]
[1646411395129,0.36429912,40703.0,40702.0,0.369321]
[1646411395330,0.41429912,40703.0,40702.0,0.369321]
[1646411395531,0.16146728,40703.0,40702.0,0.369321]
[1646411396529,0.11146728,40703.0,40702.0,0.369321]
[1646411397631,0.11146728,40703.0,40702.0,1.520721]
[1646411397632,0.06146728,40703.0,40702.0,1.520721]
[1646411397831,0.061458,40708.0,40702.0,1.520721]
[1646411397832,0.06145167,40707.0,40704.0,0.369321]
[1646411398130,0.06145167,40707.0,40703.0,0.122904]
[1646411398131,0.06145167,40707.0,40706.0,0.369321]
[1646411398332,0.001,40713.0,40706.0,0.769321]
[1646411398631,0.56916198,40713.0,40706.0,0.769321]
[1646411399072,0.56916198,40713.0,40706.0,0.830768]
[1646411399278,0.06144636,40710.0,40707.0,0.369321]
[1646411399575,0.24798212,40709.0,40706.0,0.061447]
[1646411400375,0.013222,40708.0,40706.0,0.061447]
[1646411400678,0.24798212,40709.0,40693.0,0.658283]
[1646411400679,0.19317921,40699.0,40693.0,0.658283]
[1646411400878,0.0614751,40699.0,40693.0,0.184383]
[1646411401077,0.1114751,40699.0,40694.0,0.061476]
[1646411401277,0.05,40698.0,40695.0,0.669321]
[1646411401476,0.05,40698.0,40695.0,0.369321]
[1646411401980,0.05,40698.0,40697.0,0.369321]
[1646411403826,0.05,40698.0,40697.0,0.769321]
[1646411404027,0.05,40702.0,40697.0,0.769321]
[1646411404227,0.05,40710.0,40700.0,0.369321]
[1646411404426,0.05,40710.0,40702.0,0.369321]
[1646411404649,0.18439585,40711.0,40708.0,0.369321]
[1646411404829,0.18439585,40711.0,40701.0,0.3]
[1646411405029,0.18439585,40711.0,40702.0,0.469321]
[1646411405233,0.18439585,40711.0,40703.0,0.1]
[1646411405432,0.27738621,40708.0,40707.0,0.061453]
[1646411405630,0.18160052,40709.0,40706.0,0.122905]
[1646411405833,0.06145092,40710.0,40706.0,0.122905]
[1646411406869,0.06145092,40710.0,40707.0,0.369321]
[1646411407273,0.11145092,40710.0,40707.0,0.369321]
[1646411407471,0.11145092,40710.0,40709.0,0.05965147]
[1646411407669,0.11145092,40710.0,40709.0,0.42897247]
[1646411407869,0.11145092,40710.0,40709.0,0.369321]
[1646411408072,0.11145092,40710.0,40708.0,0.369321]
[1646411408271,0.11145092,40710.0,40702.0,0.061465]
[1646411408570,0.16145092,40710.0,40702.0,0.061465]
[1646411408771,0.33051079,40706.0,40702.0,0.061465]
[1646411408974,0.43051079,40706.0,40702.0,0.061465]
[1646411409172,0.23533668,40704.0,40702.0,0.061465]
[1646411409373,0.11146503,40706.0,40703.0,0.669321]
[1646411409574,0.06146503,40706.0,40704.0,0.1]
[1646411409775,0.001,40713.0,40706.0,0.061452]
[1646411409972,0.12290658,40712.0,40706.0,0.061452]
[1646411410219,0.17290658,40712.0,40709.0,0.05853688]
[1646411410419,0.05,40712.0,40710.0,0.369321]
[1646411410718,0.001,40713.0,40710.0,0.369321]
[1646411410919,0.001,40713.0,40710.0,0.669321]
[1646411411121,0.001,40713.0,40712.0,0.369321]
[1646411411319,0.001,40713.0,40712.0,0.469321]
[1646411411523,0.7505,40723.0,40717.0,0.369321]
[1646411411524,0.30120116,40723.0,40717.0,0.369321]
[1646411412520,0.06143958,40721.0,40717.0,0.369321]
[1646411412721,0.30120116,40723.0,40717.0,0.369321]
[1646411412920,0.0511,40723.0,40717.0,0.369321]
[1646411413321,0.0011,40723.0,40717.0,0.369321]
[1646411413519,0.06143685,40722.0,40717.0,0.369321]
[1646411413723,0.06143685,40722.0,40718.0,0.1]
[1646411413968,0.06143685,40722.0,40718.0,0.469321]
[1646411414468,0.06143685,40722.0,40718.0,0.86545692]
[1646411415568,0.06143685,40722.0,40718.0,0.76545692]
[1646411416269,0.25939189,40723.0,40718.0,0.76545692]
[1646411416270,0.30939189,40723.0,40718.0,0.76545692]
[1646411417621,0.25939189,40723.0,40718.0,0.86545692]
[1646411418024,0.0511,40723.0,40718.0,0.86545692]
[1646411418224,0.0011,40723.0,40718.0,0.86520701]
[1646411418430,0.01,40719.0,40718.0,0.86520701]
[1646411418627,0.01,40719.0,40718.0,1.16520701]
[1646411419826,0.01,40719.0,40718.0,0.86520701]
[1646411421127,0.01,40719.0,40718.0,0.93561308]
[1646411422372,0.01,40719.0,40718.0,1.23561308]
[1646411422579,0.01,40719.0,40718.0,1.98701308]
[1646411422773,0.01,40719.0,40718.0,2.03621308]
[1646411423175,0.0011,40723.0,40720.0,0.369321]
[1646411423473,0.0011,40723.0,40719.0,2.212821]
[1646411423474,0.0011,40723.0,40722.0,1.120288]
[1646411423675,0.0011,40723.0,40722.0,1.520288]
[1646411423873,0.0011,40723.0,40722.0,1.71835596]
[1646411424074,0.11178605,40735.0,40723.0,2.1514]
[1646411424279,0.11178605,40735.0,40727.0,0.77594]
[1646411424477,0.11178605,40735.0,40732.0,1.120288]
[1646411424478,0.001,40735.0,40732.0,1.120288]
[1646411424674,0.001,40735.0,40732.0,1.520288]
[1646411424873,0.001,40735.0,40732.0,0.768888]
[1646411425524,0.0011,40733.0,40732.0,0.768888]
[1646411425724,0.0011,40733.0,40732.0,0.818088]
[1646411426925,0.0011,40733.0,40732.0,0.518088]
[1646411427125,0.0011,40733.0,40732.0,0.468888]
[1646411427732,0.0011,40733.0,40732.0,0.768888]
[1646411427929,0.001,40735.0,40732.0,0.768888]
[1646411428327,0.001,40735.0,40733.0,0.1]
[1646411428527,0.001,40735.0,40734.0,0.668888]
[1646411428727,0.001,40735.0,40734.0,0.818088]
[1646411428979,0.0024,40738.0,40734.0,0.83051401]
[1646411429273,0.0024,40738.0,40733.0,0.0492]
[1646411429274,1.35,40737.0,40733.0,0.0492]
[1646411429477,0.0492,40736.0,40717.0,0.2371]
[1646411429674,0.368763,40732.0,40717.0,0.2371]
[1646411429874,0.3492,40731.0,40717.0,0.2371]
[1646411430074,0.15,40729.0,40717.0,0.2371]
[1646411430279,0.15,40729.0,40713.0,0.004]
[1646411430280,0.28654654,40720.0,40713.0,0.004]
[1646411430476,0.73021541,40719.0,40713.0,0.004]
[1646411430677,0.212883,40718.0,40713.0,0.004]
[1646411430877,0.368763,40714.0,40713.0,0.004]
[1646411431077,0.62899298,40714.0,40697.0,0.232]
[1646411431379,0.62899298,40714.0,40689.0,0.854977]
[1646411431380,0.24693299,40693.0,40689.0,0.854977]
[1646411431578,0.3,40701.0,40696.0,0.22849896]
[1646411431779,0.15,40699.0,40696.0,0.22849896]
[1646411432076,0.19149416,40697.0,40696.0,0.22849896]
[1646411432280,0.85593808,40697.0,40696.0,0.22849896]
[1646411432476,0.90593808,40697.0,40696.0,0.22849896]
[1646411432724,0.90593808,40697.0,40682.0,0.2371]
[1646411432725,1.4,40696.0,40682.0,0.360089]
[1646411432929,0.06149553,40693.0,40682.0,0.122989]
[1646411433125,0.163683,40692.0,40682.0,0.122989]
[1646411433327,0.213683,40692.0,40682.0,0.122989]
[1646411433526,0.28473773,40683.0,40682.0,0.122989]
[1646411434124,0.28473773,40683.0,40681.0,0.071491]
[1646411434125,0.65350073,40683.0,40681.0,0.071491]
[1646411434323,0.163683,40682.0,40681.0,0.071491]
[1646411434523,0.235953,40682.0,40681.0,0.071491]
[1646411435124,0.285153,40682.0,40681.0,0.071491]
[1646411436124,0.12147,40682.0,40681.0,0.071491]
[1646411436398,0.0492,40682.0,40681.0,0.071491]
[1646411437992,0.417963,40682.0,40681.0,0.01]
[1646411438197,0.717963,40682.0,40681.0,0.01]
[1646411438393,0.163683,40680.0,40677.0,0.123009]
[1646411438693,0.368763,40678.0,40671.0,0.01]
[1646411438893,0.67905535,40677.0,40671.0,0.01]
[1646411439093,0.06470113,40673.0,40671.0,0.01]
[1646411439293,0.417963,40672.0,40671.0,0.01]
[1646411439692,0.67129244,40672.0,40671.0,0.01]
[1646411439894,0.73281144,40672.0,40671.0,0.01]
[1646411440124,0.36404844,40672.0,40671.0,0.01]
[1646411440325,0.73281144,40672.0,40671.0,0.01]
[1646411440727,0.36404844,40672.0,40671.0,0.01]
[1646411441124,0.68361144,40672.0,40671.0,0.01]
[1646411441325,1.07891144,40672.0,40671.0,0.01]
[1646411441524,0.163683,40670.0,40669.0,0.123035]
[1646411441724,0.508983,40670.0,40669.0,0.123035]
[1646411442125,0.558983,40670.0,40669.0,0.123035]
[1646411442527,0.558983,40670.0,40657.0,0.001]
[1646411442728,0.368763,40665.0,40657.0,0.001]
[1646411442926,0.0453,40664.0,40657.0,0.001]
[1646411443125,0.11154,40666.0,40661.0,0.123071]
[1646411443126,0.0453,40663.0,40661.0,0.123071]
[1646411443527,0.0453,40663.0,40662.0,0.368763]
[1646411443977,0.0453,40663.0,40661.0,0.123071]
[1646411444175,0.0453,40663.0,40662.0,0.368763]
[1646411444378,0.0453,40663.0,40662.0,0.668763]
[1646411444575,0.0453,40663.0,40662.0,0.368763]
[1646411444777,0.004,40667.0,40661.0,0.423071]
[1646411445077,0.0453,40663.0,40661.0,0.123071]
[1646411445881,0.0453,40663.0,40662.0,0.368763]
[1646411446581,0.0453,40663.0,40661.0,0.123071]
[1646411447381,0.0453,40663.0,40662.0,0.368763]
[1646411447631,0.28893127,40669.0,40661.0,0.423071]
[1646411448035,0.05,40669.0,40661.0,0.123071]
[1646411448234,0.002,40668.0,40663.0,0.18400101]
[1646411448536,0.002,40668.0,40665.0,0.368763]
[1646411448732,0.002,40668.0,40665.0,0.430271]
[1646411449133,0.23986914,40668.0,40665.0,0.430271]
[1646411449333,0.30786979,40667.0,40665.0,0.430271]
[1646411450335,0.002,40669.0,40666.0,0.3]
[1646411450536,0.002,40669.0,40667.0,0.368763]
[1646411450738,0.002,40669.0,40666.0,0.3]
[1646411450739,0.05,40675.0,40670.0,0.368763]
[1646411450937,0.461,40688.0,40671.0,0.3]
[1646411450938,0.05,40685.0,40671.0,0.3]
[1646411451140,0.05,40685.0,40669.0,0.004]
[1646411451377,0.29825493,40672.0,40669.0,0.004]
[1646411451579,0.368763,40671.0,40669.0,0.004]
[1646411451778,0.29825493,40672.0,40669.0,0.004]
[1646411452175,0.29825493,40672.0,40669.0,0.065507]
[1646411452375,0.34825493,40672.0,40669.0,0.065507]
[1646411453680,0.34825493,40672.0,40670.0,0.368763]
[1646411454677,0.34825493,40672.0,40669.0,0.065507]
[1646411456129,0.06151263,40674.0,40670.0,0.368763]
[1646411456336,0.05,40674.0,40671.0,0.668763]
[1646411456529,0.05,40674.0,40673.0,0.368763]
[1646411456728,0.006,40678.0,40673.0,0.668763]
[1646411456930,0.006,40678.0,40673.0,0.368763]
[1646411457128,0.006,40678.0,40674.0,0.368763]
[1646411457129,0.061508,40677.0,40674.0,0.368763]
[1646411457329,0.061508,40677.0,40673.0,0.18447]
[1646411457729,0.18466958,40676.0,40673.0,0.18447]
[1646411457929,0.368763,40675.0,40672.0,0.123]
[1646411458130,0.36559759,40676.0,40669.0,0.004]
[1646411458432,0.061532,40668.0,40657.0,0.001]
[1646411458631,0.163683,40671.0,40657.0,0.001]
[1646411458632,0.864063,40667.0,40657.0,0.001]
[1646411458887,0.07096702,40663.0,40657.0,0.001]
[1646411459285,0.1,40663.0,40657.0,0.001]
[1646411459492,0.27125138,40660.0,40658.0,0.123062]
[1646411459784,0.32125138,40660.0,40658.0,0.123062]
[1646411460984,0.3,40659.0,40657.0,0.06553]
[1646411461187,0.368763,40658.0,40657.0,0.003]
[1646411461388,0.718763,40658.0,40657.0,0.003]
[1646411461584,0.05563579,40656.0,40653.0,0.001]
[1646411461787,0.22994457,40659.0,40658.0,0.13742713]
[1646411462390,0.10685357,40659.0,40658.0,0.13742713]
[1646411462837,0.06155357,40659.0,40658.0,0.13742713]
[1646411463240,0.06155357,40659.0,40658.0,0.50619013]
[1646411463539,0.22523657,40659.0,40658.0,0.13742713]
[1646411463737,0.42042016,40659.0,40658.0,0.13742713]
[1646411463942,0.37982216,40659.0,40658.0,0.13742713]
[1646411464340,0.74858516,40659.0,40658.0,0.13742713]
[1646411464541,0.79388516,40659.0,40658.0,0.13742713]
[1646411464742,1.4,40658.0,40654.0,0.123082]
[1646411464941,0.36931646,40661.0,40655.0,0.3]
[1646411465146,0.006,40663.0,40655.0,0.32454]
[1646411465442,0.05,40671.0,40657.0,0.15]
[1646411465642,0.05,40671.0,40658.0,0.66926]
[1646411465842,0.05,40671.0,40660.0,0.36926]
[1646411466042,0.06503958,40672.0,40668.0,0.061509]
[1646411466977,0.38705922,40676.0,40668.0,0.061509]
[1646411467175,0.19254222,40673.0,40668.0,0.061509]
[1646411467376,0.24113711,40669.0,40668.0,0.430769]
[1646411467576,0.40474311,40669.0,40668.0,0.061509]
[1646411468577,0.24113711,40669.0,40668.0,0.061509]
[1646411470123,0.38687656,40670.0,40668.0,0.061509]
[1646411470124,0.12304396,40670.0,40668.0,0.061509]
[1646411470326,0.06152189,40671.0,40668.0,0.061509]
[1646411470725,0.163606,40670.0,40668.0,0.061509]
[1646411470926,0.163606,40669.0,40668.0,0.061509]
[1646411472528,0.163606,40669.0,40666.0,0.123018]
[1646411472728,0.34821056,40669.0,40666.0,0.123018]
[1646411473130,0.163606,40667.0,40666.0,0.123018]
[1646411473329,0.123074,40668.0,40666.0,0.123018]
[1646411473629,0.163606,40667.0,40666.0,0.123018]
[1646411474081,0.30768879,40668.0,40666.0,0.123018]
[1646411474480,0.18461479,40668.0,40666.0,0.123018]
[1646411475079,0.163606,40667.0,40666.0,0.123018]
[1646411475881,0.163606,40667.0,40665.0,0.12307]
[1646411476083,0.061546,40663.0,40653.0,0.001]
[1646411476280,0.313606,40662.0,40653.0,0.001]
[1646411476480,0.163606,40662.0,40653.0,0.001]
[1646411476683,0.0453,40663.0,40653.0,0.001]
[1646411476684,0.06372697,40655.0,40653.0,0.001]
[1646411476885,0.163606,40654.0,40653.0,0.001]
[1646411477081,0.163606,40654.0,40650.0,0.001]
[1646411477283,0.163606,40654.0,40647.0,0.001]
[1646411477284,1.4,40653.0,40647.0,0.001]
[1646411477489,1.4,40653.0,40635.0,0.184694]
[1646411477490,0.25,40645.0,40635.0,0.184694]
[1646411477749,0.25,40645.0,40631.0,0.02]
[1646411477750,0.28679,40637.0,40631.0,0.02]
[1646411477947,0.163606,40632.0,40631.0,0.02]
[1646411478244,0.49018272,40632.0,40631.0,0.02]
[1646411478449,0.106894,40632.0,40631.0,0.02]
[1646411480346,0.06158987,40633.0,40631.0,0.38926]
[1646411480548,0.004,40634.0,40631.0,0.02]
[1646411481147,0.06158987,40633.0,40631.0,0.02]
[1646411481383,0.163606,40632.0,40631.0,0.204701]
[1646411481779,0.49015739,40632.0,40631.0,0.204701]
[1646411481983,0.213606,40632.0,40631.0,0.204701]
[1646411482183,0.263606,40632.0,40631.0,0.204701]
[1646411482980,0.163606,40632.0,40631.0,0.204701]
[1646411483179,0.12717187,40633.0,40631.0,0.204701]
[1646411483380,0.163606,40632.0,40631.0,0.204701]
[1646411483580,0.12717187,40633.0,40631.0,0.204701]
[1646411483779,0.12317187,40633.0,40631.0,0.204701]
[1646411483982,0.06158987,40633.0,40631.0,0.204701]
[1646411484380,0.12315357,40634.0,40631.0,0.204701]
[1646411484584,0.1,40637.0,40631.0,0.204701]
[1646411484781,0.004,40638.0,40631.0,0.204701]
[1646411484984,0.004,40638.0,40632.0,0.36926]
[1646411485239,0.004,40638.0,40633.0,1.287496]
[1646411485437,0.004,40638.0,40633.0,0.361556]
[1646411485636,0.163606,40643.0,40633.0,0.361556]
[1646411485835,0.32083613,40644.0,40634.0,0.3]
[1646411485836,0.163606,40642.0,40634.0,0.3]
[1646411486036,0.163606,40642.0,40635.0,0.123132]
[1646411486249,0.05747358,40645.0,40635.0,0.123132]
[1646411486250,0.29412987,40637.0,40635.0,0.123132]
[1646411486438,0.163606,40636.0,40635.0,0.123132]
[1646411486638,0.40786118,40636.0,40635.0,0.123132]
[1646411487043,0.163606,40636.0,40635.0,0.123132]
[1646411487838,0.313606,40636.0,40635.0,0.123132]
[1646411488041,0.313606,40636.0,40633.0,0.123164]
[1646411488042,0.061589,40635.0,40633.0,0.123164]
[1646411488241,0.061589,40635.0,40627.0,0.0011]
[1646411488242,0.163606,40632.0,40627.0,0.0011]
[1646411488440,0.163606,40630.0,40627.0,0.0011]
[1646411488639,0.163606,40628.0,40627.0,0.0011]
[1646411488878,0.163606,40628.0,40620.0,0.0011]
[1646411489078,0.75069365,40627.0,40623.0,0.123194]
[1646411489281,0.163606,40626.0,40623.0,0.123194]
[1646411490382,0.163606,40626.0,40624.0,0.061588]
[1646411490881,0.61498016,40626.0,40624.0,0.061588]
[1646411491280,0.39930546,40626.0,40624.0,0.061588]
[1646411491482,0.52249346,40626.0,40624.0,0.061588]
[1646411491680,0.123188,40626.0,40624.0,0.061588]
[1646411491881,0.163606,40626.0,40624.0,0.061588]
[1646411492084,0.06158786,40627.0,40624.0,0.061588]
[1646411492281,0.18478159,40629.0,40627.0,0.12317572]
[1646411493127,0.163606,40628.0,40627.0,0.12317572]
[1646411494532,0.05,40628.0,40627.0,0.12317572]
[1646411494931,0.213606,40628.0,40627.0,0.12317572]
[1646411495332,0.44429482,40628.0,40627.0,0.12317572]
[1646411495832,0.44429482,40628.0,40624.0,0.061588]
[1646411495833,0.163606,40626.0,40624.0,0.061588]
[1646411497074,0.26150723,40626.0,40624.0,0.061588]
[1646411497275,0.163606,40624.0,40621.0,0.123193]
[1646411497476,0.34841835,40624.0,40621.0,0.123193]
[1646411497679,1.25,40623.0,40617.0,0.0011]
[1646411497876,0.123207,40621.0,40617.0,0.0011]
[1646411498077,0.163606,40620.0,40617.0,0.0011]
[1646411498475,0.163606,40620.0,40617.0,0.062703]
[1646411498476,0.22625374,40618.0,40617.0,0.062703]
[1646411498777,0.163606,40618.0,40617.0,0.057703]
[1646411499678,0.061601,40619.0,40617.0,0.057703]
[1646411499879,0.1848112,40620.0,40617.0,0.057703]
[1646411500137,0.1848112,40620.0,40618.0,0.36926]
[1646411500440,0.06160252,40622.0,40617.0,0.082243]
[1646411500634,0.12716605,40625.0,40619.0,0.3938]
[1646411500836,0.004,40625.0,40622.0,0.02454]
[1646411501036,0.004,40625.0,40624.0,0.36926]
[1646411501234,0.004,40625.0,40624.0,0.57395828]
[1646411501435,0.06157609,40626.0,40624.0,0.36926]
[1646411501635,0.061574,40634.0,40625.0,0.29393585]
[1646411501834,0.123148,40638.0,40625.0,0.29393585]
[1646411501835,0.123148,40638.0,40630.0,1.4]
[1646411502040,0.01285424,40647.0,40630.0,1.4]
[1646411502041,0.01285424,40647.0,40634.0,0.15]
[1646411502236,0.19283811,40649.0,40634.0,0.15]
[1646411502435,0.05,40652.0,40634.0,0.15]
[1646411502436,0.21850493,40645.0,40634.0,0.15]
[1646411502636,0.28671462,40644.0,40635.0,0.3]
[1646411502834,0.288556,40635.0,40632.0,0.3]
[1646411503041,0.288556,40635.0,40629.0,0.3]
[1646411503237,0.288556,40635.0,40629.0,0.361571]
[1646411503435,0.288556,40635.0,40629.0,0.061571]
[1646411503874,0.41169761,40635.0,40629.0,0.061571]
[1646411504075,0.22517681,40634.0,40629.0,0.061571]
[1646411504377,0.27517681,40634.0,40629.0,0.061571]
[1646411504774,0.20969284,40632.0,40629.0,0.061571]
[1646411504974,0.061581,40633.0,40629.0,0.061571]
[1646411505374,0.11157081,40634.0,40629.0,0.061571]
[1646411508135,0.05,40634.0,40629.0,0.361571]
[1646411508335,0.05,40634.0,40631.0,0.05750637]
[1646411508528,0.004,40640.0,40633.0,0.061561]
[1646411508928,0.004,40640.0,40634.0,0.36926]
[1646411509127,0.00201,40640.0,40635.0,0.484666]
[1646411509328,0.06155661,40642.0,40635.0,0.484666]
[1646411510930,0.06155661,40642.0,40636.0,0.77594]
[1646411511234,0.06154791,40648.0,40639.0,0.061548]
[1646411511486,0.06154791,40648.0,40640.0,0.3]
[1646411511684,0.28316256,40648.0,40639.0,0.061548]
[1646411512285,0.061561,40646.0,40639.0,0.061548]
[1646411512485,0.061561,40646.0,40641.0,0.184635]
[1646411512685,0.05,40647.0,40641.0,0.184635]
[1646411512885,0.28729654,40645.0,40641.0,0.184635]
[1646411513085,0.06156038,40645.0,40641.0,0.184635]
[1646411513288,0.29090753,40645.0,40641.0,0.184635]
[1646411513685,0.34090753,40645.0,40641.0,0.184635]
[1646411513885,0.16581246,40642.0,40639.0,0.061548]
[1646411514086,0.163606,40641.0,40639.0,0.061548]
[1646411514286,0.22517742,40641.0,40639.0,0.061548]
[1646411514486,0.06157142,40641.0,40639.0,0.061548]
[1646411516631,0.163606,40640.0,40639.0,0.061548]
[1646411516830,0.213606,40640.0,40639.0,0.061548]
[1646411517030,0.213606,40640.0,40636.0,0.123139]
[1646411517233,0.163606,40639.0,40632.0,0.123151]
[1646411517433,0.24067621,40635.0,40632.0,0.123151]
[1646411517733,0.11157094,40638.0,40632.0,0.123151]
[1646411518435,0.163606,40636.0,40632.0,0.123151]